{"text_format":"1","workbook":"xlsx","n_sheets":3,"sheets":["Лист1","Лист2","Лист3"],"not_rendered":{"charts":0,"images":0,"macros":1,"external_links":0,"defined_names":0,"comments":0,"pivot_tables":0},"unopened":[],"bounds":{"document_bytes":16777216,"sheet_cells":100000,"rows_first":2000,"rows_last":500,"rows_between":2000,"halvings":0,"cell_chars":16384,"cell_head_chars":4096},"cells_cut":0,"cells_raw":0,"read":"whole","date_system":"1900"}

{"sheet":"Лист1","index":0,"n_rows":257,"n_cols":5,"rows_kept":257,"cut":false,"hidden":false,"merged":[]}
["Название группы","Номер группы","Фраза","Список"]
["silent 100",1,"silent 100",null,{"$f":"Propusk($C$2:$C$20,ROW()-1)","v":"silent 100"}]
["silent 100",{"$f":"IF(A3=A2,B2,B2+1)","v":1},"\"silent 100\"","silent 100",{"$f":"Propusk($C$2:$C$20,ROW()-1)","v":"\"silent 100\""}]
["silent 100",{"$f":"IF(A4=A3,B3,B3+1)","v":1},"\"!silent !100\"","\"silent 100\"","\"!silent !100\""]
["silent 100",1,null,"\"!silent !100\"","silent 200"]
["silent 200",{"$f":"IF(A6=A5,B5,B5+1)","v":2},"silent 200","silent 200","\"silent 200\""]
["silent 200",{"$f":"IF(A7=A6,B6,B6+1)","v":2},"\"silent 200\"","\"silent 200\"","\"!silent !200\""]
["silent 200",2,"\"!silent !200\"","\"!silent !200\"","silent design"]
["silent 200",2,null,"silent design","\"silent design\""]
["silent design",3,"silent design","\"silent design\"","\"!silent !design\""]
["silent design",3,"\"silent design\"","\"!silent !design\"","silentub"]
["silent design",3,"\"!silent !design\"","silentub","\"silentub\""]
["silent design",3,null,"\"silentub\"","\"!silentub\""]
["silentub",4,"silentub","\"!silentub\"","soler palau silent"]
["silentub",4,"\"silentub\"","soler palau silent","\"soler palau silent\""]
["silentub",4,"\"!silentub\"","\"soler palau silent\"","\"!soler !palau !silent\""]
["silentub",4,null,"\"!soler !palau !silent\"",{"$f":"Propusk($C$2:$C$20,ROW()-1)","v":""}]
["soler palau silent",5,"soler palau silent","td silent"]
["soler palau silent",5,"\"soler palau silent\"","\"td silent\""]
["soler palau silent",5,"\"!soler !palau !silent\"","\"!td !silent\""]
["soler palau silent",5,null,"бесшумный вентилятор"]
["td silent",6,null,"\"бесшумный вентилятор\""]
["td silent",6,null,"\"!бесшумный !вентилятор\""]
["td silent",6,null,"бесшумный вентилятор для ванной"]
["td silent",6,null,"\"бесшумный вентилятор для ванной\""]
["бесшумный вентилятор",7,null,"\"!бесшумный !вентилятор !для !ванной\""]
["бесшумный вентилятор",7,null,"бесшумный канальный вентилятор"]
["бесшумный вентилятор",7,null,"\"бесшумный канальный вентилятор\""]
["бесшумный вентилятор",7,null,"\"!бесшумный !канальный !вентилятор\""]
["бесшумный вентилятор +для ванной",8,null,"бытовые вентиляторы в минске"]
["бесшумный вентилятор +для ванной",8,null,"\"бытовые вентиляторы в минске\""]
["бесшумный вентилятор +для ванной",8,null,"\"!бытовые !вентиляторы !в !минске\""]
["бесшумный вентилятор +для ванной",8,null,"бытовые вытяжные вентиляторы"]
["бесшумный канальный вентилятор",9,null,"\"бытовые вытяжные вентиляторы\""]
["бесшумный канальный вентилятор",9,null,"\"!бытовые !вытяжные !вентиляторы\""]
["бесшумный канальный вентилятор",9,null,"бытовые канальные вентиляторы"]
["бесшумный канальный вентилятор",9,null,"\"бытовые канальные вентиляторы\""]
["бытовые вентиляторы +в минске",10,null,"\"!бытовые !канальные !вентиляторы\""]
["бытовые вентиляторы +в минске",10,null,"ванна вытяжной вентилятор"]
["бытовые вентиляторы +в минске",10,null,"\"ванна вытяжной вентилятор\""]
["бытовые вентиляторы +в минске",10,null,"\"!ванна !вытяжной !вентилятор\""]
["бытовые вытяжные вентиляторы",11,null,"вентилятор в ванную комнату купить"]
["бытовые вытяжные вентиляторы",11,null,"\"вентилятор в ванную комнату купить\""]
["бытовые вытяжные вентиляторы",11,null,"\"!вентилятор !в !ванную !комнату !купить\""]
["бытовые вытяжные вентиляторы",11,null,"вентилятор в вытяжку ванны"]
["бытовые канальные вентиляторы",12,null,"\"вентилятор в вытяжку ванны\""]
["бытовые канальные вентиляторы",12,null,"\"!вентилятор !в !вытяжку !ванны\""]
["бытовые канальные вентиляторы",12,null,"вентилятор в туалет купить в минске"]
["бытовые канальные вентиляторы",12,null,"\"вентилятор в туалет купить в минске\""]
["ванна вытяжной вентилятор",13,null,"\"!вентилятор !в !туалет !купить !в !минске\""]
["ванна вытяжной вентилятор",13,null,"вентилятор для ванной комнаты купить"]
["ванна вытяжной вентилятор",13,null,"\"вентилятор для ванной комнаты купить\""]
["ванна вытяжной вентилятор",13,null,"\"!вентилятор !для !ванной !комнаты !купить\""]
["вентилятор +в ванную комнату купить",14,null,"вентилятор для ванны"]
["вентилятор +в ванную комнату купить",14,null,"\"вентилятор для ванны\""]
["вентилятор +в ванную комнату купить",14,null,"\"!вентилятор !для !ванны\""]
["вентилятор +в ванную комнату купить",14,null,"вентилятор для ванны и туалета купить"]
["вентилятор +в вытяжку ванны",15,null,"\"вентилятор для ванны и туалета купить\""]
["вентилятор +в вытяжку ванны",15,null,"\"!вентилятор !для !ванны !и !туалета !купить\""]
["вентилятор +в вытяжку ванны",15,null,"вентилятор для ванны бесшумный"]
["вентилятор +в вытяжку ванны",15,null,"\"вентилятор для ванны бесшумный\""]
["вентилятор +в туалет купить +в минске",16,null,"\"!вентилятор !для !ванны !бесшумный\""]
["вентилятор +в туалет купить +в минске",16,null,"вентилятор silent"]
["вентилятор +в туалет купить +в минске",16,null,"\"вентилятор silent\""]
["вентилятор +в туалет купить +в минске",16,null,"\"!вентилятор !silent\""]
["вентилятор +для ванной комнаты купить",17,null,"вентилятор silent 100"]
["вентилятор +для ванной комнаты купить",17,null,"\"вентилятор silent 100\""]
["вентилятор +для ванной комнаты купить",17,null,"\"!вентилятор !silent !100\""]
["вентилятор +для ванной комнаты купить",17,null,"вентилятор silent design"]
["вентилятор +для ванны",18,null,"\"вентилятор silent design\""]
["вентилятор +для ванны",{"$f":"IF(A71=A70,B70,B70+1)","v":18},null,"\"!вентилятор !silent !design\""]
["вентилятор +для ванны",18,null,"вентилятор soler palau"]
["вентилятор +для ванны",18,null,"\"вентилятор soler palau\""]
["вентилятор +для ванны +и туалета купить",19,null,"\"!вентилятор !soler !palau\""]
["вентилятор +для ванны +и туалета купить",19,null,"вентилятор soler palau silent"]
["вентилятор +для ванны +и туалета купить",19,null,"\"вентилятор soler palau silent\""]
["вентилятор +для ванны +и туалета купить",19,null,"\"!вентилятор !soler !palau !silent\""]
["вентилятор +для ванны бесшумный",20,null,"вентилятор бесшумный с обратным клапаном"]
["вентилятор +для ванны бесшумный",20,null,"\"вентилятор бесшумный с обратным клапаном\""]
["вентилятор +для ванны бесшумный",20,null,"\"!вентилятор !бесшумный !с !обратным !клапаном\""]
["вентилятор +для ванны бесшумный",20,null,"вентилятор бесшумный купить"]
["вентилятор silent",21,null,"\"вентилятор бесшумный купить\""]
["вентилятор silent",21,null,"\"!вентилятор !бесшумный !купить\""]
["вентилятор silent",21,null,"вентилятор бытовой"]
["вентилятор silent",21,null,"\"вентилятор бытовой\""]
["вентилятор silent 100",22,null,"\"!вентилятор !бытовой\""]
["вентилятор silent 101",23,null,"вентилятор бытовой купить"]
["вентилятор silent 102",24,null,"\"вентилятор бытовой купить\""]
["вентилятор silent 103",25,null,"\"!вентилятор !бытовой !купить\""]
["вентилятор silent design",26,null,"вентилятор в ванну купить"]
["вентилятор silent design",26,null,"\"вентилятор в ванну купить\""]
["вентилятор silent design",26,null,"\"!вентилятор !в !ванну !купить\""]
["вентилятор silent design",26,null,"вентилятор в ванную комнату"]
["вентилятор soler palau",27,null,"\"вентилятор в ванную комнату\""]
["вентилятор soler palau",27,null,"\"!вентилятор !в !ванную !комнату\""]
["вентилятор soler palau",27,null,"вентилятор в туалет"]
["вентилятор soler palau",27,null,"\"вентилятор в туалет\""]
["вентилятор soler palau silent",28,null,"\"!вентилятор !в !туалет\""]
["вентилятор soler palau silent",28,null,"вентилятор в туалет купить"]
["вентилятор soler palau silent",28,null,"\"вентилятор в туалет купить\""]
["вентилятор soler palau silent",28,null,"\"!вентилятор !в !туалет !купить\""]
["вентилятор бесшумный +с обратным клапаном",29,null,"вентилятор в туалет минск"]
["вентилятор бесшумный +с обратным клапаном",29,null,"\"вентилятор в туалет минск\""]
["вентилятор бесшумный +с обратным клапаном",29,null,"\"!вентилятор !в !туалет !минск\""]
["вентилятор бесшумный +с обратным клапаном",29,null,"вентилятор вытяжной для ванной"]
["вентилятор бесшумный купить",30,null,"\"вентилятор вытяжной для ванной\""]
["вентилятор бесшумный купить",30,null,"\"!вентилятор !вытяжной !для !ванной\""]
["вентилятор бесшумный купить",30,null,"вентилятор вытяжной для ванной купить"]
["вентилятор бесшумный купить",30,null,"\"вентилятор вытяжной для ванной купить\""]
["вентилятор бытовой",31,null,"\"!вентилятор !вытяжной !для !ванной !купить\""]
["вентилятор бытовой",31,null,"вентилятор вытяжной для ванны"]
["вентилятор бытовой",31,null,"\"вентилятор вытяжной для ванны\""]
["вентилятор бытовой",31,null,"\"!вентилятор !вытяжной !для !ванны\""]
["вентилятор бытовой купить",32,null,"вентилятор вытяжной с клапаном"]
["вентилятор бытовой купить",32,null,"\"вентилятор вытяжной с клапаном\""]
["вентилятор бытовой купить",32,null,"\"!вентилятор !вытяжной !с !клапаном\""]
["вентилятор бытовой купить",32,null,"вентилятор вытяжной канальный"]
["вентилятор в ванну купить",33,null,"\"вентилятор вытяжной канальный\""]
["вентилятор в ванну купить",33,null,"\"!вентилятор !вытяжной !канальный\""]
["вентилятор в ванну купить",33,null,"вентилятор вытяжной купить в минске"]
["вентилятор в ванну купить",33,null,"\"вентилятор вытяжной купить в минске\""]
["вентилятор в ванную комнату",34,null,"\"!вентилятор !вытяжной !купить !в !минске\""]
["вентилятор в ванную комнату",34,null,"вентилятор для ванной"]
["вентилятор в ванную комнату",34,null,"\"вентилятор для ванной\""]
["вентилятор в ванную комнату",34,null,"\"!вентилятор !для !ванной\""]
["вентилятор в туалет",35,null,"вентилятор для ванной купить в минске"]
["вентилятор в туалет",35,null,"\"вентилятор для ванной купить в минске\""]
["вентилятор в туалет",35,null,"\"!вентилятор !для !ванной !купить !в !минске\""]
["вентилятор в туалет",35,null,"вентилятор для ванны и туалета"]
["вентилятор в туалет купить",36,null,"\"вентилятор для ванны и туалета\""]
["вентилятор в туалет купить",36,null,"\"!вентилятор !для !ванны !и !туалета\""]
["вентилятор в туалет купить",36,null,"вентилятор осевой вытяжной"]
["вентилятор в туалет купить",36,null,"\"вентилятор осевой вытяжной\""]
["вентилятор в туалет минск",37,null,"\"!вентилятор !осевой !вытяжной\""]
["вентилятор в туалет минск",{"$f":"IF(A135=A134,B134,B134+1)","v":37},null,"вентиляторы для ванной и туалета"]
["вентилятор в туалет минск",37,null,"\"вентиляторы для ванной и туалета\""]
["вентилятор в туалет минск",37,null,"\"!вентиляторы !для !ванной !и !туалета\""]
["вентилятор вытяжной +для ванной",38,null,"вентиляторы для ванны минск"]
["вентилятор вытяжной +для ванной",38,null,"\"вентиляторы для ванны минск\""]
["вентилятор вытяжной +для ванной",38,null,"\"!вентиляторы !для !ванны !минск\""]
["вентилятор вытяжной +для ванной",38,null,"вентиляторы для ванной минск"]
["вентилятор вытяжной +для ванной купить",39,null,"\"вентиляторы для ванной минск\""]
["вентилятор вытяжной +для ванной купить",39,null,"\"!вентиляторы !для !ванной !минск\""]
["вентилятор вытяжной +для ванной купить",39,null,"вентиляторы канальные минск"]
["вентилятор вытяжной +для ванной купить",39,null,"\"вентиляторы канальные минск\""]
["вентилятор вытяжной +для ванны",40,null,"\"!вентиляторы !канальные !минск\""]
["вентилятор вытяжной +для ванны",40,null,"вытяжной вентилятор с обратным"]
["вентилятор вытяжной +для ванны",40,null,"\"вытяжной вентилятор с обратным\""]
["вентилятор вытяжной +для ванны",40,null,"\"!вытяжной !вентилятор !с !обратным\""]
["вентилятор вытяжной +с клапаном",41,null,"вытяжной вентилятор с обратным клапаном"]
["вентилятор вытяжной +с клапаном",41,null,"\"вытяжной вентилятор с обратным клапаном\""]
["вентилятор вытяжной +с клапаном",41,null,"\"!вытяжной !вентилятор !с !обратным !клапаном\""]
["вентилятор вытяжной +с клапаном",41,null,"вытяжной вентилятор купить"]
["вентилятор вытяжной канальный",42,null,"\"вытяжной вентилятор купить\""]
["вентилятор вытяжной канальный",42,null,"\"!вытяжной !вентилятор !купить\""]
["вентилятор вытяжной канальный",42,null,"вытяжные вентиляторы минск"]
["вентилятор вытяжной канальный",42,null,"\"вытяжные вентиляторы минск\""]
["вентилятор вытяжной купить +в минске",43,null,"\"!вытяжные !вентиляторы !минск\""]
["вентилятор вытяжной купить +в минске",43,null,"канальные вентиляторы цена"]
["вентилятор вытяжной купить +в минске",43,null,"\"канальные вентиляторы цена\""]
["вентилятор вытяжной купить +в минске",43,null,"\"!канальные !вентиляторы !цена\""]
["вентилятор для ванной",44,null,"канальный вентилятор купить в минске"]
["вентилятор для ванной",44,null,"\"канальный вентилятор купить в минске\""]
["вентилятор для ванной",44,null,"\"!канальный !вентилятор !купить !в !минске\""]
["вентилятор для ванной",44,null,"круглые канальные вентиляторы"]
["вентилятор для ванной купить в минске",45,null,"\"круглые канальные вентиляторы\""]
["вентилятор для ванной купить в минске",45,null,"\"!круглые !канальные !вентиляторы\""]
["вентилятор для ванной купить в минске",45,null,"круглые канальные вентиляторы купить"]
["вентилятор для ванной купить в минске",45,null,"\"круглые канальные вентиляторы купить\""]
["вентилятор для ванны и туалета",46,null,"\"!круглые !канальные !вентиляторы !купить\""]
["вентилятор для ванны и туалета",46,null,"купить вентилятор для ванной"]
["вентилятор для ванны и туалета",46,null,"\"купить вентилятор для ванной\""]
["вентилятор для ванны и туалета",46,null,"\"!купить !вентилятор !для !ванной\""]
["вентилятор осевой вытяжной",47,null,"купить вентилятор для ванны в минске"]
["вентилятор осевой вытяжной",47,null,"\"купить вентилятор для ванны в минске\""]
["вентилятор осевой вытяжной",47,null,"\"!купить !вентилятор !для !ванны !в !минске\""]
["вентилятор осевой вытяжной",47,null,"купить вентилятор для туалета и ванной"]
["вентиляторы +для ванной +и туалета",48,null,"\"купить вентилятор для туалета и ванной\""]
["вентиляторы +для ванной +и туалета",48,null,"\"!купить !вентилятор !для !туалета !и !ванной\""]
["вентиляторы +для ванной +и туалета",48,null,"купить вентилятор в ванную"]
["вентиляторы +для ванной +и туалета",48,null,"\"купить вентилятор в ванную\""]
["вентиляторы +для ванны минск",49,null,"\"!купить !вентилятор !в !ванную\""]
["вентиляторы +для ванны минск",49,null,"купить канальный вентилятор"]
["вентиляторы +для ванны минск",49,null,"\"купить канальный вентилятор\""]
["вентиляторы +для ванны минск",49,null,"\"!купить !канальный !вентилятор\""]
["вентиляторы для ванной минск",50,null,"лучший вентилятор ванна"]
["вентиляторы для ванной минск",50,null,"\"лучший вентилятор ванна\""]
["вентиляторы для ванной минск",50,null,"\"!лучший !вентилятор !ванна\""]
["вентиляторы для ванной минск",50,null,"подключение вентилятор в ванну"]
["вентиляторы канальные минск",51,null,"\"подключение вентилятор в ванну\""]
["вентиляторы канальные минск",51,null,"\"!подключение !вентилятор !в !ванну\""]
["вентиляторы канальные минск",51,null,"подключение вентилятора в ванной"]
["вентиляторы канальные минск",51,null,"\"подключение вентилятора в ванной\""]
["вытяжной вентилятор +с обратным",52,null,"\"!подключение !вентилятора !в !ванной\""]
["вытяжной вентилятор +с обратным",52]
["вытяжной вентилятор +с обратным",52]
["вытяжной вентилятор +с обратным",52]
["вытяжной вентилятор +с обратным клапаном",53]
["вытяжной вентилятор +с обратным клапаном",{"$f":"IF(A199=A198,B198,B198+1)","v":53}]
["вытяжной вентилятор +с обратным клапаном",53]
["вытяжной вентилятор +с обратным клапаном",53]
["вытяжной вентилятор купить",54]
["вытяжной вентилятор купить",54]
["вытяжной вентилятор купить",54]
["вытяжной вентилятор купить",54]
["вытяжные вентиляторы минск",55]
["вытяжные вентиляторы минск",55]
["вытяжные вентиляторы минск",55]
["вытяжные вентиляторы минск",55]
["канальные вентиляторы цена",56]
["канальные вентиляторы цена",56]
["канальные вентиляторы цена",56]
["канальные вентиляторы цена",56]
["канальный вентилятор купить +в минске",57]
["канальный вентилятор купить +в минске",57]
["канальный вентилятор купить +в минске",57]
["канальный вентилятор купить +в минске",57]
["круглые канальные вентиляторы",58]
["круглые канальные вентиляторы",58]
["круглые канальные вентиляторы",58]
["круглые канальные вентиляторы",58]
["круглые канальные вентиляторы купить",59]
["круглые канальные вентиляторы купить",59]
["круглые канальные вентиляторы купить",59]
["круглые канальные вентиляторы купить",59]
["купить вентилятор +для ванной",60]
["купить вентилятор +для ванной",60]
["купить вентилятор +для ванной",60]
["купить вентилятор +для ванной",60]
["купить вентилятор +для ванны +в минске",61]
["купить вентилятор +для ванны +в минске",61]
["купить вентилятор +для ванны +в минске",61]
["купить вентилятор +для ванны +в минске",61]
["купить вентилятор +для туалета +и ванной",62]
["купить вентилятор +для туалета +и ванной",62]
["купить вентилятор +для туалета +и ванной",62]
["купить вентилятор +для туалета +и ванной",62]
["купить вентилятор в ванную",63]
["купить вентилятор в ванную",63]
["купить вентилятор в ванную",63]
["купить вентилятор в ванную",63]
["купить канальный вентилятор",64]
["купить канальный вентилятор",64]
["купить канальный вентилятор",64]
["купить канальный вентилятор",64]
["лучший вентилятор ванна",65]
["лучший вентилятор ванна",65]
["лучший вентилятор ванна",65]
["лучший вентилятор ванна",65]
["подключение вентилятор +в ванну",66]
["подключение вентилятор +в ванну",66]
["подключение вентилятор +в ванну",66]
["подключение вентилятор +в ванну",66]
["подключение вентилятора +в ванной",67]
["подключение вентилятора +в ванной",67]
["подключение вентилятора +в ванной",67]
["подключение вентилятора +в ванной",67]

{"sheet":"Лист2","index":1,"n_rows":0,"n_cols":0,"rows_kept":0,"cut":false,"hidden":false,"merged":[]}

{"sheet":"Лист3","index":2,"n_rows":0,"n_cols":0,"rows_kept":0,"cut":false,"hidden":false,"merged":[]}